Cogmind - Beta 17.1 @@@ ROGUE MODE // 2026.09.22 @ 04:23:41 Player: robotdolboeb Result: Self-destructed Performance ------------- Evolutions (1) 500 Regions Visited (2) 400 Robots Destroyed (16) 80 Value Destroyed (443) 443 Prototype IDs (0) 0 Alien Tech Used (0) 0 Bonus (0) 0 TOTAL SCORE: 1423 Bonus ------- None Cogmind --------- Core Integrity 337/400 Matter 229/300 Energy 250/250 System Corruption 0% Temperature Cool (0) Movement Walking (190) Ox1 Location -9/Materials Parts ------- > --- POWER (1) -------- Ion Engine > --- PROPULSION (2) --- Aluminum Leg Aluminum Leg > --- UTILITY (4) ------ Large Storage Unit Sensor Array Signal Interpreter Targeting Computer > --- WEAPON (2) ------- Small Laser > --- INVENTORY (15) --- Aluminum Leg Large Storage Unit Transport Network Coupler Targeting Computer Targeting Computer Power Shielding Hardened Light Armor Plating Peak State ------------ > --- POWER ------------ Light Ion Engine > --- PROPULSION ------- Light Treads Light Treads > --- UTILITY ---------- Large Storage Unit Sensor Array Signal Interpreter Targeting Computer > --- WEAPON ----------- Small Laser Grenade Launcher > --- INVENTORY -------- Ion Engine Aluminum Leg Aluminum Leg Aluminum Leg Large Storage Unit Transport Network Coupler Targeting Computer Targeting Computer Power Shielding Small Laser [Rating: 10] Favorites ----------- Power Light Ion Engine Engine Light Ion Engine Propulsion Light Treads Treads Light Treads Leg Aluminum Leg Utility Large Storage Unit Device Sensor Array Storage Large Storage Unit Processor Targeting Computer Weapon Small Laser Energy Gun Small Laser Launcher Grenade Launcher Build | -11 -10 -9 ------- Run | Yrd Mat Mat Slots Evolved 2 | . . 2 Power . | . . . Propulsion . | . . . Utility 2 | . . 2 Weapon . | . . . Parts Attached 17 | 5 8 4 Power 3 | 1 1 1 Engine 3 | 1 1 1 Core . | . . . Reactor . | . . . Propulsion 5 | 2 2 1 Treads 2 | . 2 . Leg 3 | 2 . 1 Wheel . | . . . Hover . | . . . Flight . | . . . Utility 5 | 1 2 2 Device 1 | . . 1 Storage 2 | 1 1 . Processor 2 | . 1 1 Hackware . | . . . Protection . | . . . Artifact . | . . . Weapon 4 | 1 3 . Energy Gun 3 | 1 2 . Energy Cannon . | . . . Ballistic Gun . | . . . Ballistic Cannon . | . . . Launcher 1 | . 1 . Special Weapon . | . . . Impact Weapon . | . . . Slashing Weapon . | . . . Piercing Weapon . | . . . Special Melee Weapon . | . . . Unidentified Prototypes . | . . . Parts Lost 7 | . 2 5 Power 2 | . 1 1 Propulsion 2 | . . 2 Utility . | . . . Weapon 3 | . 1 2 Highest Loss Streak 5 | . 1 5 To Critical Strikes . | . . . Average Backups 9 | 2 10 9 Power 1 | . 1 . Propulsion 2 | 1 2 2 Utility 4 | . 5 5 Weapon 1 | . 1 . Tool/Special . | . . . Unused Backups 6 | . . 6 Power . | . . . Propulsion . | . . . Utility 6 | . . 6 Weapon . | . . . Tool/Special . | . . . Average Slot Usage (%) 89 | . 88 91 Engine 6 | . 5 10 Treads 23 | . 27 11 Leg 2 | . . 8 Device 2 | . . 11 Storage 13 | . 14 11 Processor 15 | . 13 21 Energy Gun 21 | . 24 11 Launcher 3 | . 2 5 Peak Build Rating 10 | 5 8 10 Average Rating 7 | 4 7 8 On Entrance 4 | . 5 8 Avg Prop Armor Cover (%) . | . . . Naked Turns . | . . . Heaviest Build 28 | 10 28 28 Greatest Support 40 | 20 40 40 Greatest Overweight (x) 3 | 3 . 1 Average Overweight (x) . | . . . Largest Inventory Capacity 15 | 8 15 15 Average Capacity 14 | 7 14 15 Most Carried 13 | 5 13 11 Average Carried 9 | 2 10 9 Final Capacity 15 | 8 15 15 Final Carried 12 | 5 12 7 Class Distribution -------------------- 100% | Mutant Dominant Class ---------------- Mutant | -10/Materials Mutant | -9/Materials Resources | -11 -10 -9 ----------- Run | Yrd Mat Mat Matter Collected 419 | 189 196 34 Remotely . | . . . Salvage Created 517 | . 465 52 Parts 32 | . 27 5 Haulers Intercepted . | . . . Recyclers Shooed 1 | . 1 . Parts Field Recycled . | . . . Retrieved Matter . | . . . Parts Self-Destructed . | . . . Prevented . | . . . Parts Restored . | . . . Kills | -11 -10 -9 ------- Run | Yrd Mat Mat Combat Hostiles Destroyed 12 | . 7 5 Guns 5 | . 4 1 AOE 7 | . 3 4 Classes Destroyed 6 | . 4 2 Recycler 2 | . 2 . Operator 1 | . 1 . Watcher 1 | . 1 . Swarmer 4 | . . 4 Grunt 7 | . 7 . Sentry 1 | . . 1 Best Kill Streak 4 | . 4 4 Combat Bots Only 4 | . 2 4 Max Kills in Single Turn 2 | . 2 2 Gunslinging . | . . . Exploded 2 | . 1 2 Melee . | . . . Uniques/NPCs Destroyed . | . . . Combat | -11 -10 -9 -------- Run | Yrd Mat Mat Hostile Shots Fired 50 | . 23 27 Missed 15 | . 9 6 Hits 35 | . 14 21 Projectile 35 | . 14 21 Critical Strikes 3 | . 1 2 Damage Taken 695 | . 319 376 Core 120 | . 57 63 Absorbed by Shields . | . . . Core Remaining (%) 88 | 100 77 . Volleys Fired 34 | . 21 13 Largest 2 | . 2 2 Hottest 80 | . 80 80 Shots Fired 62 | . 42 20 Gun 51 | . 37 14 Cannon . | . . . Launcher 11 | . 5 6 Special . | . . . Kinetic . | . . . Thermal 37 | . 23 14 Explosive 11 | . 5 6 Electromagnetic 14 | . 14 . Robot Hit Streak 13 | . 13 8 Robot Miss Streak 2 | . 2 1 Penetration Max . | . . . Secondary Targets . | . . . Shots Hit Robots 48 | . 33 15 Core Hits 27 | . 20 7 Critical Kills . | . . . Critical Parts Destroyed . | . . . Critical Strikes . | . . . Melee Attacks . | . . . Impact . | . . . Slashing . | . . . Piercing . | . . . Sneak Attacks . | . . . Combat Hostiles . | . . . Follow-up Attacks . | . . . Damage Inflicted 1185 | . 751 434 Guns 458 | . 345 113 Cannons . | . . . Explosions 727 | . 406 321 Melee . | . . . Ramming . | . . . Kinetic . | . . . Thermal 466 | . 353 113 Explosive 506 | . 185 321 Electromagnetic 213 | . 213 . Impact . | . . . Slashing . | . . . Piercing . | . . . Highest Corruption . | . . . Average Corruption . | . . . Corruption Purged . | . . . Corruption Blocked . | . . . Overload Shots . | . . . Overflow Damage 54 | . 15 39 Projectiles . | . . . Explosions 54 | . 15 39 Melee . | . . . Knockbacks . | . . . Impact . | . . . Kinetic . | . . . Secondary . | . . . Self-Inflicted Damage 266 | . 159 107 Shots 12 | . 7 5 Rammed 1 | . 1 . Targets Rammed 1 | . 1 . Kicked . | . . . Crushed . | . . . Highest Temperature 102 | . 102 25 Average Temperature 27 | . 30 11 Received Heat Transfer 219 | . 111 108 Siege Activations . | . . . Martial Activations . | . . . Shielding Activations . | . . . Robots Disrupted . | . . . Combat Hostiles . | . . . Robots Corrupted . | . . . Combat Hostiles . | . . . Parts Fried . | . . . Impact Corruptions . | . . . Robots Melted . | . . . Combat Hostiles . | . . . Parts Melted 2 | . 1 1 Heat Transferred 850 | . 600 250 Parts Sabotaged . | . . . Parts Stolen . | . . . Parts Stripped . | . . . Power Chain Reactions 4 | . 4 . Alert | -11 -10 -9 ------- Run | Yrd Mat Mat Maximum Alert Level . | . . . Low Security (%) 100 | 100 100 100 Level 1 . | . . . Level 2 . | . . . Level 3 . | . . . Level 4 . | . . . Level 5 . | . . . High Security . | . . . Max Security . | . . . Peak Influence 129 | . 126 129 Initial 42 | . . 42 Average 42 | . 40 72 Influence Increases 476 | . 318 158 Destroy 0b10 Robot/C 240 | . 140 100 Destroy 0b10 Robot/NC 20 | . 20 . Destroy Leader 52 | . 32 20 Successful Hack 5 | . 5 . Disable Machine 75 | . 60 15 Destroy Structure 69 | . 46 23 Lose Combat Pursuer 15 | . 15 . Influence Decreases 436 | . 216 220 Entered New Map 60 | . . 60 Time Decay 277 | . 167 110 Lost Part 70 | . 20 50 Purge Threat 29 | . 29 . Squads Dispatched 1 | . 1 . Investigation . | . . . Extermination . | . . . Reinforcement 1 | . 1 . Assault . | . . . Garrison . | . . . Intercept . | . . . Searches Triggered . | . . . Construction Impeded . | . . . Haulers Reinforced . | . . . Active Scanning Responses . | . . . Cargo Convoy Interrupts . | . . . Stealth | -11 -10 -9 --------- Run | Yrd Mat Mat Distress Signals . | . . . Communications Jammed . | . . . Distress Signals . | . . . Times Spotted 17 | . 12 5 Peak Tracking Total 4 | . 3 4 Tactical Retreats 1 | . 1 . Traps | -11 -10 -9 ------- Run | Yrd Mat Mat Traps Triggered . | . . . Indirectly . | . . . Trap Hack Attempts . | . . . Triggered . | . . . Disarmed . | . . . Reprogrammed . | . . . Reused . | . . . Traps Extracted . | . . . Installed . | . . . Triggered . | . . . Machines | -11 -10 -9 ---------- Run | Yrd Mat Mat Machines Disabled 5 | . 4 1 Max in Single Turn 2 | . 2 1 Machines Repaired . | . . . Machines Dismantled . | . . . Machines Sabotaged . | . . . Overloaded Fab Kills . | . . . Hacking | -11 -10 -9 --------- Run | Yrd Mat Mat Machines Accessed 2 | . 2 . Terminals 2 | . 2 . Fabricators . | . . . Repair Stations . | . . . Recycling Units . | . . . Scanalyzers . | . . . Garrison Access . | . . . Total Hacks 5 | . 5 . Successful 2 | . 2 . Failed 3 | . 3 . Catastrophic . | . . . Database Lockouts . | . . . Manual . | . . . Terminals 5 | . 5 . Fabricators . | . . . Repair Stations . | . . . Recycling Units . | . . . Scanalyzers . | . . . Garrison Access . | . . . Terminal Hacks 2 | . 2 . Unreport Threat 1 | . 1 . Zone Layout 1 | . 1 . Fabricator Hacks . | . . . Repair Station Hacks . | . . . Recycling Unit Hacks . | . . . Scanalyzer . | . . . Garrison Access Hacks . | . . . Unauthorized Hacks . | . . . Terminals . | . . . Fabricators . | . . . Repair Stations . | . . . Recycling Units . | . . . Scanalyzers . | . . . Garrison Access . | . . . Data Cores Recovered 1 | . 1 . Used . | . . . Hacking Detections 1 | . 1 . Full Trace Events 1 | . 1 . Feedback Events . | . . . Feedback Blocked . | . . . Robot Schematics Acquired . | . . . Robots Built . | . . . Authchips . | . . . Time . | . . . Total Robot Build Rating . | . . . Part Schematics Acquired . | . . . Parts Built . | . . . Authchips . | . . . Time . | . . . Total Part Build Rating . | . . . Part Studies Acquired . | . . . Parts Repaired . | . . . Time . | . . . Parts Recycled . | . . . Recycled Matter . | . . . Retrieved Matter . | . . . Retrieved Components . | . . . Parts Scanalyzed . | . . . Part Schematics Acquired . | . . . Parts Damaged . | . . . Bothacking | -11 -10 -9 ------------ Run | Yrd Mat Mat Used RIF Installer . | . . . Robots Hacked . | . . . Non-combat . | . . . Combat . | . . . Robot Hacks Applied . | . . . Relay Couplers Released . | . . . Fabnet Peak Effective % . | . . . Robots Rewired . | . . . Allies Hacked . | . . . Hacks Repelled . | . . . Allies | -11 -10 -9 -------- Run | Yrd Mat Mat Total Allies . | . . . Largest Group . | . . . Highest-Rated Group . | . . . Highest-Rated Ally . | . . . Total Orders . | . . . Ally Attacks . | . . . Total Damage . | . . . Kills . | . . . Allies Corrupted . | . . . Allies Melted . | . . . Intel | -11 -10 -9 ------- Run | Yrd Mat Mat Active Infowar (turns) 225 | . . 225 Sensors 225 | . . 225 Robot Analysis Total . | . . . Derelict Logs Recovered . | . . . Drone Launches . | . . . Drone Recoveries . | . . . Exploration | -11 -10 -9 ------------- Run | Yrd Mat Mat Turns Passed 1024 | 111 688 225 Spaces Moved 557 | 81 371 105 Core 7 | 7 . . Treads 425 | . 366 59 Legs 125 | 74 5 46 Wheels . | . . . Hover . | . . . Flight . | . . . Fastest Speed 50 | 50 120 160 Average Speed 156 | 118 159 173 Slowest Speed 200 | 200 160 190 Overloaded Moves . | . . . Propulsion Burnouts . | . . . Robots Hopped . | . . . Potential Cave-ins . | . . . Cave-ins Triggered . | . . . Exploration Rate (%) 20 | 4 48 10 Regions Visited 2 Branch Regions . Pre-discovered Areas . | . . . Known Exits Taken . | . . . Unknown Exits Taken 2 | 1 1 . Scrap Searched . | . . . Spaces Dug . | . . . Terrain Destroyed 66 | . 39 27 Melee . | . . . Projectile . | . . . AOE 66 | . 39 27 Terrain Rammed . | . . . Walls Destroyed . | . . . Machines Disabled . | . . . Actions | -11 -10 -9 --------- Run | Yrd Mat Mat Total 645 | 95 422 128 Wait 10 | . 7 3 Move 555 | 80 370 105 Hop . | . . . Pick Up 23 | 10 12 1 Fast Attach . | . . . Attach 15 | 5 4 6 Detach . | . . . Swap 6 | . 6 . Drop 1 | . 1 . Fire 34 | . 21 13 Melee . | . . . Ram . | . . . Kick . | . . . Crush 1 | . 1 . Escape Stasis . | . . . Rewire . | . . . Trap . | . . . Miscellaneous . | . . . Route ------- -11/Scrapyard -10/Materials (discovered 2 exits: [*Mat] / [*Min]) -9/Materials History --------- Turn | Location | Event 17 | -11/Scrapyard | Discovered new exit (range 15) 112 | -11/Scrapyard | Entered Materials 306 | -10/Materials | Build established: Mutant 330 | -10/Materials | Discovered new exit (range 8) 755 | -10/Materials | Discovered new exit (range 13) 800 | -10/Materials | Entered another Materials area 800 | -9/Materials | Evolved 2 slots: Utility x2 957 | -9/Materials | Lost 5 parts (1p2n2w) 1025 | -9/Materials | Self-destructed Last Messages --------------- Destroyed Flight Unit. S-10 Pest destroyed. Atomic Centrifuge disabled. S-10 Pest destroyed. Destroyed Flight Unit. S-10 Pest destroyed. Acquired Hrd. Light Armor Plating. Critical hit (Burn: +37). Lgt. Treads destroyed. Destroyed Lgt. Treads. Grenade Launcher destroyed. Lgt. Ion Engine destroyed. The unstable cave ceiling collapses. Sml. Laser destroyed. Critical hit (Burn: +37). Lgt. Treads destroyed. Beam Rifle melted. Y-45 Defender destroyed. Acquired 34 matter. The unstable cave ceiling collapses. Map ----- +----------------------------------------------------+ | ?????????????????????????????????????????????????? | | ?????????????????????????????????????????????????? | | ?????????????????????????????????????????????????? | | ?????????????????????????????????????????????????? | | ?????????????????????????????????????????????????? | | ?????????????????????????????????????????????????? | | ?????????????????????????????????????????????????? | | ???????????????#?????????????????????????????????? | | ???????????????# ????????????????????????????????? | | ???????????????# ???????????????????????????????? | | ???????????????# ???????????????????????????????? | | ???????????????# ??????????????????????????????? | | ??????????????## #?????????????????????????????? | | ??????????????# #########????????????????????? | | ??????????????# T !##???????????????????? | | ??????????????# "" !#???????????????????? | | ?????????????????? !#???????????????????? | | ?????????????????????# !#???????????????????? | | ?????????????????????# !#???????????????????? | | ?????????????????????# !##???????????????????? | | ?????????????????????# ####????????????????????? | | ????????????????????## ##??????????????????????? | | ????????????????????# #??????????????????????? | | ????????????????????# #??????????????????????? | | ????????????????????# " #??????????????????????? | | ????????????????????# @#????????############### | | ????????????????????# #????????# # | | ????????????????????## ##????????# """ # | | ?????????????????????# #?????????# """ # | | ?????????????????????# #?????????# """ # " | | ?????????????????????# #?????###?# # "" | | ???????????##X##????## ##????# ### "" # "" | | ???????????? ??# #????# # # "" | | ???????????? """ # ###### ## # " | | ???????????? """ + x x # | | ???????????? """ # ####### # # = ######+ | | ???????????? ! ??# #????# | | ???????????# ????#######????## | | ???????????# ??????????????????# ## | | ???????????#???????????????????? ################ | | ???????????????????????????????###???????????????? | | ?????????????????????????????????????????????????? | | ?????????????????????????????????????????????????? | | ?????????????????????????????????????????????????? | | ?????????????????????????????????????????????????? | | | | | | | | | | | +----------------------------------------------------+ Best States ------------- Heat Dissipation 28 Energy Generation 10 Energy Capacity 250 Matter Stores 300 Matter Capacity 300 Sight Range 16 Robot Scan Range 14 Terrain Scan Density 10 Evasion (%) 55 Targeting Accuracy 5 Recoil Reduction 2 Item Schematics ----------------- None Robot Schematics ------------------ None Fabricated ------------ Nothing Repaired ---------- Nothing Studied --------- None Alien Tech Used ----------------- None Achievements -------------- Let's See Who's Tougher Challenges ------------ None Game ------ Seed GodAlloySpecial Manual? 0 Play Time 00:12:37 Cumulative 16.8 hours Start 2026.09.22 @ 04:13:11 End 2026.09.22 @ 04:23:41 Sessions 1 Manual Loads 0 Difficulty Rogue Special Mode None Game No. 16 Rogue 16 Adventurer 0 Explorer 0 Win Type - Total 0 Types 0/0/0/0/0/0/0/0/0/0 Lore% 7 Gallery% 15 Achievement% 14 Wizard Run 0 Options --------- Layout 1 ASCII 0 Keyboard 0 Movement Mouse Keybinds 0 Fullscreen 1 Font 32/SmallcapsGlow Map View 50x35 Zoom Use 0% Tactical HUD 0 Map Filters NONE Filters NONE Steam 1 RUN: cc5bf61e-96c7-4904-bcf3-c0a98f3c71e3